bitfinex/quotes_BTCUSD_20241128
["timestamp","ask_amount","ask_price","bid_price","bid_amount"]
[1732766406777,0.104635,95570.0,95566.0,0.09377883]
[1732766407016,0.104633,95572.0,95566.0,0.09377883]
[1732766407218,0.11747485,95587.0,95566.0,0.09377883]
[1732766407219,0.001,95583.0,95566.0,0.09377883]
[1732766407426,0.002,95583.0,95567.0,0.09377883]
[1732766407632,0.104631,95574.0,95567.0,0.09377883]
[1732766407848,0.104634,95572.0,95567.0,0.09377883]
[1732766408059,0.418488,95582.0,95564.0,0.14066824]
[1732766408060,0.209244,95582.0,95566.0,0.09377883]
[1732766408293,0.104632,95573.0,95568.0,0.104637]
[1732766408536,0.209246,95581.0,95568.0,0.09377883]
[1732766408750,0.104635,95571.0,95568.0,0.09377883]
[1732766408979,0.104632,95573.0,95568.0,0.09377883]
[1732766409187,0.104633,95572.0,95568.0,0.09377883]
[1732766409418,0.104633,95572.0,95569.0,0.093797]
[1732766409630,0.20925,95579.0,95569.0,0.093797]
[1732766409840,0.104628,95577.0,95571.0,0.104634]
[1732766410052,0.0008578,95582.0,95569.0,0.198433]
[1732766410053,0.10463,95575.0,95569.0,0.198433]
[1732766410267,0.209246,95581.0,95569.0,0.093797]
[1732766410485,0.209246,95581.0,95570.0,0.093797]
[1732766410688,0.104634,95572.0,95570.0,0.093797]
[1732766410898,0.20926,95575.0,95570.0,0.093797]
[1732766411106,0.209247,95581.0,95570.0,0.198431]
[1732766411315,0.104629,95576.0,95570.0,0.093797]
[1732766411525,0.0008578,95582.0,95570.0,0.093797]
[1732766412006,0.209257,95577.0,95571.0,0.093797]
[1732766412217,0.104628,95577.0,95571.0,0.198431]
[1732766412432,0.0008578,95582.0,95572.0,0.093797]
[1732766412665,0.0008578,95582.0,95577.0,0.093797]
[1732766412880,0.0008578,95582.0,95581.0,0.104623]
[1732766413089,0.0018578,95582.0,95581.0,0.104623]
[1732766413305,0.0018578,95582.0,95581.0,0.24531851]
[1732766413526,0.0008578,95582.0,95581.0,0.39506222]
[1732766413753,0.0028578,95582.0,95581.0,0.39506222]
[1732766413985,0.0028578,95582.0,95581.0,0.20746821]
[1732766414230,0.0018578,95582.0,95581.0,0.20746821]
[1732766414925,0.0008578,95582.0,95581.0,0.20746821]
[1732766415145,0.00073698,95582.0,95581.0,0.20746821]
[1732766415377,0.00173698,95582.0,95581.0,0.44183284]
[1732766415601,0.00158564,95582.0,95581.0,0.44183284]
[1732766415875,0.00158564,95582.0,95581.0,0.44483284]
[1732766416094,0.00158564,95582.0,95581.0,0.21646821]
[1732766416315,0.00076752,95588.0,95584.0,0.209238]
[1732766416525,0.00076752,95588.0,95586.0,0.18742258]
[1732766416774,0.00076752,95588.0,95587.0,0.24518249]
[1732766417436,0.00076752,95588.0,95587.0,0.104616]
[1732766418357,0.00076752,95588.0,95587.0,0.19829337]
[1732766418584,0.00067721,95588.0,95587.0,0.19829337]
[1732766418817,0.00067721,95588.0,95587.0,0.19828838]
[1732766419041,0.00067721,95588.0,95587.0,0.09367238]
[1732766419245,0.00067721,95588.0,95587.0,0.104616]
[1732766419461,0.00067721,95588.0,95587.0,0.107616]
[1732766419701,0.1049883,95588.0,95587.0,0.003]
[1732766419917,0.1049883,95588.0,95587.0,0.004]
[1732766420145,0.0003733,95588.0,95587.0,0.004]
[1732766420570,0.0003733,95588.0,95587.0,0.108616]
[1732766421005,6.942e-05,95588.0,95587.0,0.108616]
[1732766421732,6.942e-05,95588.0,95587.0,0.21146121]
[1732766422756,2.60070867,95589.0,95588.0,0.104615]
[1732766422999,2.60070867,95589.0,95588.0,0.30106645]
[1732766423481,2.60070867,95589.0,95588.0,0.20746021]
[1732766423931,2.60070867,95589.0,95588.0,0.10284521]
[1732766424176,2.60070867,95589.0,95588.0,0.10384521]
[1732766424636,2.60070867,95589.0,95588.0,0.21046021]
[1732766427563,2.64562384,95589.0,95588.0,0.003]
[1732766427807,2.70498952,95589.0,95588.0,0.003]
[1732766429600,2.60037552,95589.0,95588.0,0.003]
[1732766430081,2.70498952,95589.0,95588.0,0.003]
[1732766430310,2.60037552,95589.0,95588.0,0.003]
[1732766432547,2.60037552,95589.0,95583.0,0.104621]
[1732766432761,2.60037552,95589.0,95588.0,0.005]
[1732766433417,2.60037552,95589.0,95588.0,0.003]
[1732766433628,2.60037552,95589.0,95588.0,0.005]
[1732766434070,2.60037552,95589.0,95588.0,0.002]
[1732766434380,2.60037552,95589.0,95584.0,0.10284521]
[1732766434600,2.60037552,95589.0,95588.0,0.005]
[1732766434809,2.60037552,95589.0,95584.0,0.10284521]
[1732766435021,2.60037552,95589.0,95588.0,0.005]
[1732766435516,0.104616,95587.0,95584.0,0.10284521]
[1732766435739,2.60037552,95589.0,95581.0,0.0017156]
[1732766435942,0.209233,95587.0,95581.0,0.0017156]
[1732766436171,0.104619,95585.0,95581.0,0.0017156]
[1732766436802,2.60037552,95589.0,95582.0,0.10284521]
[1732766437506,2.60037552,95589.0,95588.0,0.005]
[1732766437802,2.60037552,95589.0,95581.0,0.0037156]
[1732766438013,2.60037552,95589.0,95588.0,0.20746021]
[1732766438875,2.60037552,95589.0,95588.0,0.21346021]
[1732766439756,2.60037552,95589.0,95588.0,0.20746021]
[1732766440442,2.60037552,95589.0,95588.0,0.21246021]
[1732766440898,2.60037552,95589.0,95588.0,0.30595865]
[1732766441114,2.60037552,95589.0,95588.0,0.22146021]
[1732766441336,2.60037552,95589.0,95588.0,0.31495644]
[1732766441549,2.60037552,95589.0,95588.0,0.20746021]
[1732766441770,2.60037552,95589.0,95588.0,0.37146041]
[1732766442209,2.60037552,95589.0,95588.0,0.36246041]
[1732766442438,2.60037552,95589.0,95588.0,0.23721606]
[1732766442652,2.57539527,95589.0,95588.0,0.23721606]
[1732766442867,2.57539527,95589.0,95588.0,0.22821606]
[1732766443080,2.57539527,95589.0,95588.0,0.23721606]
[1732766443501,2.57539527,95589.0,95588.0,0.424362]
[1732766443706,2.57539527,95589.0,95588.0,0.23721606]
[1732766444596,2.57539527,95589.0,95588.0,0.23893146]
[1732766444832,2.57539527,95589.0,95588.0,0.47297133]
[1732766445512,2.57539527,95589.0,95588.0,0.23893146]
[1732766446149,2.57539527,95589.0,95588.0,0.38893146]
[1732766451351,2.58002886,95589.0,95588.0,0.38893146]
[1732766452239,2.58234565,95589.0,95588.0,0.38893146]
[1732766452668,2.58234565,95589.0,95588.0,0.38293146]
[1732766453141,2.58234565,95589.0,95588.0,0.37393146]
[1732766453358,2.58234565,95589.0,95588.0,0.38293146]
[1732766453813,2.58234565,95589.0,95588.0,0.23293146]
[1732766454037,2.58234565,95589.0,95588.0,0.24093146]
[1732766454480,2.58234565,95589.0,95588.0,0.23293146]
[1732766454908,2.58234565,95589.0,95588.0,0.24093146]
[1732766455131,2.58234565,95589.0,95588.0,0.23193146]
[1732766455387,2.58234565,95589.0,95588.0,0.22393146]
[1732766455631,2.68517711,95589.0,95588.0,0.0167154]
[1732766455841,2.68695965,95589.0,95588.0,0.0077154]
[1732766456054,2.68695965,95589.0,95588.0,0.0167154]
[1732766456785,2.73762953,95589.0,95588.0,0.0257154]
[1732766456994,2.86355254,95589.0,95588.0,0.0197154]
[1732766457208,2.86355254,95589.0,95588.0,0.0017154]
[1732766457419,0.114622,95582.0,95581.0,0.0017156]
[1732766457644,0.26813709,95582.0,95581.0,0.0017156]
[1732766457851,0.28121489,95582.0,95581.0,0.0017156]
[1732766458093,0.28121489,95582.0,95561.0,0.09381742]
[1732766458094,0.104644,95562.0,95561.0,0.09381742]
[1732766458304,0.104648,95558.0,95557.0,0.09381742]
[1732766458520,0.0311812,95579.0,95555.0,0.09553282]
[1732766458521,0.10465,95556.0,95555.0,0.09553282]
[1732766458960,0.10465,95556.0,95555.0,0.0017154]
[1732766459881,0.10465,95556.0,95555.0,0.0107154]
[1732766460823,0.39694769,95556.0,95555.0,0.0107154]
[1732766461952,0.37749521,95556.0,95555.0,0.0107154]
[1732766462153,0.37749521,95556.0,95555.0,0.0017154]
[1732766462570,0.37749521,95556.0,95555.0,0.0057154]
[1732766462999,0.37749521,95556.0,95555.0,0.0017154]
[1732766463240,0.38349521,95556.0,95555.0,0.0017154]
[1732766463711,0.01,95543.0,95524.0,0.0017136]
[1732766463932,0.104679,95530.0,95524.0,0.0017136]
[1732766465469,0.119295,95530.0,95524.0,0.0017136]
[1732766465697,0.119295,95530.0,95529.0,0.0077152]
[1732766466356,0.104679,95530.0,95529.0,0.0077152]
[1732766466572,0.104679,95530.0,95529.0,0.0097152]
[1732766468568,0.36752421,95530.0,95529.0,0.0097152]
[1732766469028,0.37752421,95530.0,95529.0,0.0097152]
[1732766469243,0.37752421,95530.0,95524.0,0.0017136]
[1732766469244,0.124684,95525.0,95524.0,0.0017136]
[1732766469458,0.39052921,95525.0,95524.0,0.0017136]
[1732766469681,0.37752921,95525.0,95524.0,0.0017136]
[1732766470337,0.40052921,95525.0,95524.0,0.0017136]
[1732766470759,0.40552921,95525.0,95524.0,0.0017136]
[1732766471646,0.269684,95525.0,95524.0,0.0017136]
[1732766472771,0.109684,95525.0,95524.0,0.0017136]
[1732766473028,0.109684,95525.0,95499.0,0.0017144]
[1732766473029,0.104712,95500.0,95499.0,0.0017144]
[1732766473981,0.12399251,95500.0,95499.0,0.0017144]
[1732766474207,0.1692554,95500.0,95499.0,0.0017144]
[1732766474418,0.20286734,95500.0,95499.0,0.0047144]
[1732766474644,0.16792854,95500.0,95499.0,0.0047144]
[1732766475550,0.32792854,95500.0,95499.0,0.0047144]
[1732766475765,0.46377375,95500.0,95499.0,0.0077144]
[1732766476053,0.4516845,95500.0,95499.0,0.0017144]
[1732766476510,0.4526845,95500.0,95499.0,0.0017144]
[1732766477233,0.46577375,95500.0,95499.0,0.0017144]
[1732766477446,0.46577375,95500.0,95451.0,0.104765]
[1732766477447,0.209448,95489.0,95451.0,0.104765]
[1732766477682,0.16752742,95488.0,95454.0,0.209523]
[1732766477898,0.16752742,95488.0,95453.0,0.15]
[1732766477899,0.104744,95471.0,95462.0,0.104753]
[1732766478124,0.209459,95484.0,95462.0,0.10284521]
[1732766478335,0.209479,95475.0,95462.0,0.10284521]
[1732766478563,0.209483,95473.0,95462.0,0.10284521]
[1732766478790,0.209459,95484.0,95462.0,0.10284521]
[1732766479017,0.174,95500.0,95462.0,0.10284521]
[1732766479018,0.02073652,95483.0,95462.0,0.10284521]
[1732766479246,0.104748,95468.0,95462.0,0.10284521]
[1732766479481,0.104752,95463.0,95462.0,0.10284521]
[1732766479954,0.104752,95463.0,95462.0,0.10684521]
[1732766480398,0.104752,95463.0,95462.0,0.10984521]
[1732766480625,0.104752,95463.0,95462.0,0.007]
[1732766480836,0.105752,95463.0,95462.0,0.009]
[1732766481124,0.12649817,95463.0,95462.0,0.009]
[1732766481333,0.15736858,95463.0,95462.0,0.018]
[1732766481750,0.17046127,95463.0,95462.0,0.018]
[1732766481977,0.15736858,95463.0,95462.0,0.018]
[1732766482430,0.17046219,95463.0,95462.0,0.018]
[1732766482640,0.17046219,95463.0,95462.0,0.009]
[1732766483075,0.17046219,95463.0,95462.0,0.018]
[1732766483076,0.17146219,95463.0,95462.0,0.018]
[1732766483378,0.06424452,95463.0,95462.0,0.113753]
[1732766483653,0.06432851,95463.0,95462.0,0.10884521]
[1732766483862,0.02032177,95463.0,95462.0,0.10884521]
[1732766484073,0.02032177,95463.0,95462.0,0.11384521]
[1732766484289,0.15602815,95463.0,95462.0,0.011]
[1732766484502,0.15602815,95463.0,95446.0,0.209542]
[1732766484503,0.10476,95457.0,95446.0,0.209542]
[1732766484738,0.05027615,95456.0,95448.0,0.15]
[1732766484962,0.16812954,95455.0,95450.0,0.15]
[1732766485191,0.05027615,95454.0,95451.0,0.10284521]
[1732766485428,0.06336814,95453.0,95451.0,0.10284521]
[1732766485630,0.03091484,95457.0,95451.0,0.10284521]
[1732766485631,0.06336814,95452.0,95451.0,0.10284521]
[1732766486503,0.09428298,95452.0,95451.0,0.10284521]
[1732766486735,0.09428298,95452.0,95446.0,0.004]
[1732766486975,0.10477,95447.0,95446.0,0.004]
[1732766487213,0.104771,95446.0,95445.0,0.0008589]
[1732766487416,0.16813914,95446.0,95445.0,0.0008589]
[1732766487884,0.15504715,95446.0,95445.0,0.0008589]
[1732766488310,0.16814099,95446.0,95445.0,0.0008589]
[1732766489018,0.15504715,95446.0,95445.0,0.0008589]
[1732766489472,0.16814092,95446.0,95445.0,0.0008589]
[1732766489910,0.12409277,95446.0,95445.0,0.0008589]
[1732766490136,0.12609277,95446.0,95445.0,0.0168589]
[1732766490353,0.15618105,95446.0,95445.0,0.0078589]
[1732766490566,0.01932177,95446.0,95445.0,0.0008589]
[1732766490785,0.01932177,95446.0,95445.0,0.0098589]
[1732766490786,0.02032177,95446.0,95445.0,0.0098589]
[1732766490975,0.02032177,95446.0,95445.0,0.0148589]
[1732766491269,0.12509277,95446.0,95445.0,0.0148589]
[1732766491486,0.02032177,95446.0,95445.0,0.0148589]
[1732766492972,0.001,95446.0,95445.0,0.0148589]
[1732766496043,0.105771,95446.0,95445.0,0.0148589]
[1732766496548,0.10723667,95446.0,95445.0,0.0148589]
[1732766496979,0.104784,95434.0,95431.0,0.0004]
[1732766498297,0.00146567,95437.0,95433.0,0.11356061]
[1732766498550,0.001,95434.0,95433.0,0.1155004]
[1732766499224,0.002,95434.0,95433.0,0.1235004]
[1732766499438,0.002,95434.0,95433.0,0.1247969]
[1732766499667,0.002,95434.0,95433.0,0.2747969]
[1732766499879,0.002,95434.0,95433.0,0.41934561]
[1732766500092,0.001,95434.0,95433.0,0.41034561]
[1732766500558,0.001,95437.0,95436.0,0.124782]
[1732766500773,0.00146567,95468.0,95436.0,0.124782]
[1732766500774,0.104748,95467.0,95462.0,0.104753]
[1732766500989,0.209491,95470.0,95462.0,0.20759821]
[1732766501221,0.10621167,95469.0,95462.0,0.20759821]
[1732766501688,0.00146567,95469.0,95464.0,0.10475]
[1732766502346,0.104748,95467.0,95462.0,0.10284521]
[1732766502564,0.00146567,95469.0,95462.0,0.10284521]
[1732766502792,0.10475,95466.0,95462.0,0.10284521]
[1732766503052,0.00094181,95467.0,95462.0,0.10284521]
[1732766503270,0.05819906,95557.0,95454.0,0.01474988]
[1732766503271,0.104761,95455.0,95454.0,0.01474988]
[1732766503480,0.00094181,95481.0,95447.0,0.104769]
[1732766503745,0.104758,95458.0,95450.0,0.104766]
[1732766503956,0.00094181,95457.0,95451.0,0.20761021]
[1732766504194,0.209522,95455.0,95451.0,0.10284521]
[1732766504427,0.104759,95457.0,95451.0,0.10284521]
[1732766504642,0.00094181,95459.0,95451.0,0.20760921]
[1732766504861,0.01951446,95458.0,95452.0,0.104764]
[1732766505104,0.05073757,95457.0,95452.0,0.20760821]
[1732766505324,0.05073757,95456.0,95452.0,0.10284521]
[1732766505540,0.05073757,95455.0,95452.0,0.10284521]
[1732766505785,0.10476,95457.0,95452.0,0.10284521]
[1732766505786,0.05073757,95454.0,95452.0,0.10284521]
[1732766505993,0.05073757,95453.0,95452.0,0.10284521]
[1732766506204,0.05073757,95453.0,95450.0,0.016]
[1732766506453,0.104765,95451.0,95450.0,0.009]
[1732766506700,0.05073757,95451.0,95450.0,0.009]
[1732766506918,0.05073757,95451.0,95445.0,0.0008589]
[1732766507127,0.00194181,95455.0,95445.0,0.10370411]
[1732766507335,0.00094181,95454.0,95451.0,0.009]
[1732766507549,0.02046139,95454.0,95450.0,0.008]
[1732766507774,0.0017178,95457.0,95450.0,0.008]
[1732766507775,0.001,95453.0,95452.0,0.104764]
[1732766508039,0.001,95453.0,95452.0,0.20946333]
[1732766508881,0.0017178,95457.0,95454.0,0.104762]
[1732766509095,0.0017178,95457.0,95455.0,0.10284521]
[1732766510205,0.0017178,95457.0,95456.0,0.10476]
[1732766510409,0.0017178,95457.0,95456.0,0.10284521]
[1732766510618,0.0017178,95457.0,95456.0,0.20760521]
[1732766511724,0.0027178,95457.0,95456.0,0.20760521]
[1732766511939,0.0017178,95457.0,95456.0,0.20760521]
[1732766512147,0.0017178,95457.0,95456.0,0.10284521]
[1732766512360,0.0037178,95457.0,95456.0,0.20552436]
[1732766512567,0.1084768,95457.0,95456.0,0.009]
[1732766512996,0.1074768,95457.0,95456.0,0.009]
[1732766513252,0.15268265,95457.0,95456.0,0.016]
[1732766513454,0.1084768,95457.0,95456.0,0.016]
[1732766513760,0.10941861,95457.0,95456.0,0.016]
[1732766514127,0.12793404,95457.0,95456.0,0.009]
[1732766514384,0.10841861,95457.0,95456.0,0.009]
[1732766514596,0.10841861,95457.0,95445.0,0.0008589]
[1732766514597,0.104771,95446.0,95445.0,0.0008589]
[1732766514821,0.10571281,95446.0,95445.0,0.0008589]
[1732766516501,0.10571281,95446.0,95445.0,0.0018589]
[1732766516931,0.10571281,95446.0,95445.0,0.0008589]
[1732766517344,0.10571281,95446.0,95445.0,0.0078589]
[1732766517807,0.10571281,95446.0,95445.0,0.0028589]
[1732766518012,0.10571281,95446.0,95445.0,0.0078589]
[1732766518430,0.10571281,95446.0,95445.0,0.0028589]
[1732766518631,0.10571281,95446.0,95445.0,0.0008589]
[1732766518842,0.10571281,95446.0,95445.0,0.0018589]
[1732766519494,0.10571281,95446.0,95445.0,0.0008589]
[1732766519697,0.10671281,95446.0,95445.0,0.0008589]
[1732766520368,0.10571281,95446.0,95445.0,0.0008589]
[1732766520605,0.10671281,95446.0,95445.0,0.0008589]
[1732766520837,0.00194181,95446.0,95445.0,0.0008589]
[1732766521051,0.001,95446.0,95445.0,0.1056309]
[1732766521698,0.001,95446.0,95445.0,0.21047611]
[1732766521985,0.001,95446.0,95445.0,0.445101]
[1732766522183,0.00094181,95465.0,95445.0,0.10370411]
[1732766522405,0.00094181,95465.0,95456.0,0.10476]
[1732766522632,0.0017174,95466.0,95456.0,0.44244027]
[1732766522857,0.0017174,95466.0,95456.0,0.20760521]
[1732766523331,0.104752,95464.0,95456.0,0.20760521]
[1732766523551,0.2112154,95466.0,95456.0,0.33769115]
[1732766523800,0.2112154,95466.0,95456.0,0.29472755]
[1732766524070,0.209509,95461.0,95456.0,0.004]
[1732766524317,0.1064768,95457.0,95456.0,0.004]
[1732766525005,0.1074768,95457.0,95456.0,0.011]
[1732766525205,0.1064768,95457.0,95456.0,0.004]
[1732766525663,0.1074768,95457.0,95456.0,0.007]
[1732766526122,0.1074768,95457.0,95456.0,0.012]
[1732766526533,0.1074768,95457.0,95456.0,0.007]
[1732766526964,0.1074768,95457.0,95447.0,0.23484594]
[1732766526965,0.01,95446.0,95444.0,0.09395028]
[1732766527217,0.36761621,95446.0,95436.0,0.09395028]
[1732766527463,0.36761621,95446.0,95418.0,0.09395028]
[1732766527695,0.38713902,95446.0,95415.0,0.09395028]
[1732766527923,0.38713902,95446.0,95411.0,0.0004]
[1732766527924,0.40061621,95446.0,95411.0,0.0004]
[1732766528161,0.40061621,95446.0,95440.0,0.0501]
[1732766528830,0.40461621,95446.0,95440.0,0.0501]
[1732766529528,0.40861621,95446.0,95440.0,0.0501]
[1732766530051,0.40461621,95446.0,95440.0,0.0501]
[1732766530282,0.42429411,95446.0,95445.0,0.0018589]
[1732766530485,0.43329411,95446.0,95445.0,0.0018589]
[1732766530988,0.40029411,95446.0,95445.0,0.0018589]
[1732766532114,0.39129411,95446.0,95445.0,0.0008589]
[1732766532552,0.39929411,95446.0,95445.0,0.0018589]
[1732766532972,0.24929411,95446.0,95445.0,0.0018589]
[1732766533393,0.24029411,95446.0,95445.0,0.0018589]
[1732766533893,0.24929411,95446.0,95445.0,0.0018589]
[1732766535008,0.43229411,95446.0,95445.0,0.0018589]
[1732766539016,0.121771,95446.0,95445.0,0.0018589]
[1732766539221,0.12271281,95446.0,95445.0,0.0018589]
[1732766539877,0.11471281,95446.0,95445.0,0.0008589]
[1732766540120,0.10571281,95446.0,95445.0,0.0008589]
[1732766540340,0.11671281,95446.0,95445.0,0.0018589]
[1732766540771,0.11071281,95446.0,95445.0,0.0008589]
[1732766540999,0.11471281,95446.0,95445.0,0.0008589]
[1732766541858,0.11143061,95446.0,95445.0,0.0008589]
[1732766542276,0.11543061,95446.0,95445.0,0.0008589]
[1732766543153,0.11143061,95446.0,95445.0,0.0008589]
[1732766543364,0.11543061,95446.0,95445.0,0.0008589]
[1732766543788,0.11143061,95446.0,95445.0,0.0008589]
[1732766543993,0.11543061,95446.0,95445.0,0.0008589]
[1732766544474,0.21827582,95446.0,95445.0,0.0008589]
[1732766544698,0.21733401,95446.0,95445.0,0.0008589]
[1732766553656,0.1144888,95446.0,95445.0,0.0008589]
[1732766553865,0.11543061,95446.0,95445.0,0.0008589]
[1732766554777,0.11143061,95446.0,95445.0,0.0008589]
[1732766555248,0.11443061,95446.0,95445.0,0.0008589]
[1732766555493,0.11043061,95446.0,95445.0,0.0008589]
[1732766556441,0.0047178,95446.0,95445.0,0.1056309]
[1732766556649,0.0047178,95446.0,95445.0,0.20847611]
[1732766556882,0.0067178,95446.0,95445.0,0.20847611]
[1732766557119,0.0037178,95446.0,95445.0,0.34910753]
[1732766557355,0.0017178,95446.0,95445.0,0.37288887]
[1732766557588,0.0047178,95446.0,95445.0,0.37288887]
[1732766558018,0.0037178,95446.0,95445.0,0.37288887]
[1732766558283,0.0037178,95446.0,95445.0,0.37588887]
[1732766558521,0.0017178,95446.0,95445.0,0.37588887]
[1732766558756,0.0027178,95446.0,95445.0,0.39088887]
[1732766560238,0.0027178,95446.0,95445.0,0.42888887]
[1732766560473,0.0027178,95446.0,95445.0,0.8440763]
[1732766560693,0.0027178,95446.0,95445.0,0.84406504]
[1732766560941,0.0027178,95446.0,95445.0,0.42888887]
[1732766561150,0.0017178,95446.0,95445.0,0.41588887]
[1732766561376,0.0107178,95446.0,95445.0,0.41688887]
[1732766561609,0.0197178,95446.0,95445.0,0.41788887]
[1732766561809,0.0197178,95446.0,95445.0,0.43849149]
[1732766563160,0.0017178,95457.0,95445.0,0.43849149]
[1732766563161,0.0017178,95457.0,95456.0,0.12476]
[1732766563373,0.0017178,95457.0,95456.0,0.40245887]
[1732766563582,0.0017178,95457.0,95456.0,0.40060521]
[1732766564458,0.0067178,95457.0,95456.0,0.68128784]
[1732766564702,0.0097178,95457.0,95456.0,0.68128784]
[1732766564916,0.0097178,95457.0,95456.0,0.40060521]
[1732766565601,0.0097178,95457.0,95456.0,0.4154594]
[1732766566490,0.0097178,95457.0,95456.0,0.69588751]
[1732766567429,0.0097178,95457.0,95456.0,0.4154594]
[1732766567643,0.104709,95503.0,95465.0,0.02]
[1732766567860,0.104709,95503.0,95465.0,0.63604733]
[1732766568116,0.00094181,95505.0,95465.0,0.63419392]
[1732766568325,0.00094181,95505.0,95465.0,0.40059521]
[1732766568326,0.104708,95504.0,95465.0,0.40059521]
[1732766568542,0.00094181,95503.0,95465.0,0.40059521]
[1732766569003,0.22353137,95517.0,95465.0,0.40059521]
[1732766569004,0.003,95466.0,95465.0,0.40159521]
[1732766569227,0.0012826,95466.0,95465.0,0.68202332]
[1732766569431,0.00094181,95516.0,95499.0,0.104713]
[1732766569633,0.00094181,95516.0,95499.0,0.35755821]
[1732766569839,0.10563581,95516.0,95499.0,0.35755821]
[1732766570283,0.00094181,95516.0,95499.0,0.35755821]
[1732766570492,0.209356,95531.0,95499.0,0.35755821]
[1732766570493,0.209353,95533.0,95499.0,0.35755821]
[1732766570729,0.104679,95530.0,95499.0,0.35755821]
[1732766570930,0.209322,95547.0,95499.0,0.36755821]
[1732766571185,0.104668,95540.0,95499.0,0.55423674]
[1732766571394,0.00094181,95539.0,95499.0,0.40055821]
[1732766571829,0.0017178,95542.0,95499.0,0.40055821]
[1732766572359,0.0017178,95542.0,95499.0,0.42386797]
[1732766572556,0.0017178,95542.0,95499.0,0.41486797]
[1732766572765,0.0017178,95542.0,95499.0,0.42286797]
[1732766572987,0.0017178,95542.0,95499.0,0.27286797]
[1732766573215,0.0017178,95542.0,95499.0,0.41486797]
[1732766574586,0.0017178,95542.0,95514.0,0.02]
[1732766574796,0.0017178,95542.0,95541.0,0.104667]
[1732766575031,0.0017178,95542.0,95541.0,0.20751221]
[1732766575695,0.0017178,95542.0,95541.0,0.35751221]
[1732766576771,0.0017178,95542.0,95541.0,0.36251221]
[1732766578498,0.0017178,95542.0,95541.0,0.37051221]
[1732766578719,0.0017178,95542.0,95541.0,0.36551221]
[1732766578929,0.0017178,95542.0,95541.0,0.36251221]
[1732766579137,0.0017178,95542.0,95541.0,0.38586699]
[1732766580457,0.0017178,95542.0,95541.0,0.39586699]
[1732766580666,0.0017178,95549.0,95548.0,0.114659]
[1732766580877,0.0017178,95549.0,95548.0,0.36750421]
[1732766581139,0.0017178,95549.0,95548.0,0.37750421]
[1732766581349,0.0017178,95549.0,95548.0,0.40050421]
[1732766582207,0.0017178,95549.0,95548.0,0.42162483]
[1732766582640,0.0017178,95549.0,95548.0,0.42262483]
[1732766583356,0.0017178,95549.0,95548.0,0.42362483]
[1732766583610,0.0204185,95593.0,95580.0,0.104624]
[1732766583810,0.0204185,95593.0,95580.0,0.36746921]
[1732766585343,0.0204185,95593.0,95580.0,0.35746921]
[1732766585812,0.0204185,95593.0,95580.0,0.37546921]
[1732766586235,0.104615,95588.0,95580.0,0.37546921]
[1732766586485,0.1054807,95581.0,95580.0,0.009]
[1732766586691,0.1054807,95581.0,95560.0,0.1379843]
[1732766586692,0.00179951,95581.0,95561.0,0.104644]
[1732766586901,0.00094181,95580.0,95574.0,0.20926]
[1732766587139,0.0008577,95581.0,95580.0,0.104624]
[1732766587345,0.0008577,95581.0,95575.0,0.10284521]
[1732766587783,0.209248,95580.0,95575.0,0.10284521]
[1732766587991,0.0008577,95581.0,95580.0,0.009]
[1732766588201,0.1054807,95581.0,95580.0,0.009]
[1732766588434,0.1054807,95581.0,95580.0,0.008]
[1732766588897,0.1054807,95581.0,95575.0,0.10284521]
[1732766588898,0.0008577,95581.0,95575.0,0.10284521]
[1732766589134,0.0008577,95581.0,95580.0,0.003]
[1732766589351,0.1054807,95581.0,95580.0,0.003]
[1732766589585,0.0008577,95581.0,95580.0,0.003]
[1732766589801,0.0008577,95581.0,95580.0,0.20746921]
[1732766590237,0.0008577,95581.0,95580.0,0.20932088]
[1732766590487,0.0008577,95581.0,95580.0,0.35932088]
[1732766590743,0.0008577,95581.0,95580.0,0.37165731]
[1732766591441,0.0008577,95581.0,95580.0,0.37765731]
[1732766591684,0.0008577,95581.0,95580.0,0.38765731]
[1732766592159,0.0008577,95581.0,95580.0,0.39365731]
[1732766592385,0.0008577,95581.0,95580.0,0.38765731]
[1732766592616,0.0008577,95581.0,95580.0,0.39065731]
[1732766593304,0.0008577,95581.0,95580.0,0.43265731]
[1732766594485,0.0008577,95581.0,95580.0,0.40965731]
[1732766595396,0.0008577,95581.0,95580.0,0.40065731]
[1732766595618,0.0008577,95581.0,95580.0,0.40965731]
[1732766596250,0.0008577,95581.0,95580.0,0.39165731]
[1732766596704,0.0008577,95581.0,95580.0,0.39365731]
[1732766599391,2.57579527,95589.0,95588.0,0.114615]
[1732766599634,2.57579527,95589.0,95588.0,0.35746021]
[1732766599842,2.57579527,95589.0,95588.0,0.20746021]
[1732766601015,2.57579527,95589.0,95588.0,0.35746021]
[1732766601232,2.57579527,95589.0,95580.0,0.001]
[1732766601485,2.68540927,95589.0,95588.0,0.001]
[1732766601701,2.70840927,95589.0,95588.0,0.001]
[1732766601918,2.70840927,95589.0,95550.0,0.20613385]
[1732766601919,0.10463,95575.0,95550.0,0.20613385]
[1732766602170,0.023,95588.0,95562.0,0.0017158]
[1732766602391,0.209266,95572.0,95563.0,0.10284521]
[1732766602603,0.0008579,95581.0,95563.0,0.10284521]
[1732766602604,0.209248,95580.0,95563.0,0.10284521]
[1732766602826,0.104634,95572.0,95563.0,0.10284521]
[1732766603109,0.0008579,95581.0,95563.0,0.10284521]
[1732766603110,0.104638,95567.0,95563.0,0.10284521]
[1732766603319,0.0008579,95581.0,95563.0,0.10284521]
[1732766603320,0.104632,95573.0,95566.0,0.104639]
[1732766603540,0.104632,95573.0,95567.0,0.10284521]
[1732766603786,0.209263,95574.0,95567.0,0.10284521]
[1732766603787,0.104633,95572.0,95567.0,0.10284521]
[1732766604004,0.008,95575.0,95567.0,0.10284521]
[1732766604231,0.008,95575.0,95574.0,0.25463]
[1732766604464,0.008,95575.0,95574.0,0.10284521]
[1732766604689,0.008,95575.0,95563.0,0.104643]
[1732766604690,0.11263,95575.0,95563.0,0.104643]
[1732766604920,0.11263,95575.0,95562.0,0.00240307]
[1732766604921,0.10463,95575.0,95569.0,0.15]
[1732766605149,0.20925,95579.0,95570.0,0.10284521]
[1732766605389,0.104634,95571.0,95570.0,0.10284521]
[1732766605618,0.104635,95570.0,95569.0,0.15]
[1732766605839,0.104635,95570.0,95569.0,0.25284521]
[1732766606076,0.104633,95573.0,95569.0,0.25284521]
[1732766606311,0.104635,95571.0,95570.0,0.008]
[1732766606523,0.104635,95571.0,95570.0,0.013]
[1732766606744,0.104635,95571.0,95570.0,0.005]
[1732766606966,0.00094181,95574.0,95563.0,0.10284521]
[1732766607178,0.104639,95566.0,95563.0,0.10284521]